Workbook

Sheet 읍면동별 세대 및 인구
A1: 여수시 읍면동별 세대 및 인구
A2: 작성기준 : 2015.3.31. 현재 | J2: (단위 : 세대, 명)
A3: 구 분 | B3: 세대수1) | C3: 합 계 | F3: 한국인 | I3: 외국인
C4: 계 | D4: 남 | E4: 여 | F4: 계 | G4: 남 | H4: 여 | I4: 계 | J4: 남 | K4: 여
A5: 2010년말 | B5: 110,613 | C5: 293,488 | D5: 148,455 | E5: 145,033 | F5: 293,488 | G5: 148,455 | H5: 145,033 | I5: 2,390 | J5: 1,430 | K5: 960
A6: 2011년말 | B6: 111,921 | C6: 295,538 | D6: 149,827 | E6: 145,711 | F6: 292,750 | G6: 148,115 | H6: 144,635 | I6: 2,788 | J6: 1,712 | K6: 1,076
A7: 2012년말 | B7: 112,907 | C7: 295,215 | D7: 149,735 | E7: 145,480 | F7: 292,217 | G7: 147,922 | H7: 144,295 | I7: 2,998 | J7: 1,813 | K7: 1,185
A8: 2013년말 | B8: 114,364 | C8: 294,565 | D8: 149,547 | E8: 145,018 | F8: 291,366 | G8: 147,539 | H8: 143,827 | I8: 3,199 | J8: 2,008 | K8: 1,191
A9: 2014년말 | B9: 116,100 | C9: 294,459 | D9: 149,725 | E9: 144,734 | F9: 290,900 | G9: 147,346 | H9: 143,554 | I9: 3,559 | J9: 2,379 | K9: 1,180
A10: 2015.1월 | B10: 116,501 | C10: 295,690 | D10: 150,362 | E10: 145,328 | F10: 292,121 | G10: 147,980 | H10: 144,141 | I10: 3,569 | J10: 2,382 | K10: 1,187
A11: 2015.2월 | B11: 116,591 | C11: 295,122 | D11: 150,182 | E11: 144,940 | F11: 291,522 | G11: 147,778 | H11: 143,744 | I11: 3,600 | J11: 2,404 | K11: 1,196
A12: 2015.3월 | B12: =SUM(B13:B39) -> 116,702 | C12: =D12+E12 -> 294,547 | D12: =SUM(D13:D39) -> 149,991 | E12: =SUM(E13:E39) -> 144,556 | F12: =G12+H12 -> 290,957 | G12: =SUM(G13:G39) -> 147,593 | H12: =SUM(H13:H39) -> 143,364 | I12: =J12+K12 -> 3,590 | J12: =SUM(J13:J39) -> 2,398 | K12: =SUM(K13:K39) -> 1,192
A13: 돌산읍 | B13: 6,333 | C13: =SUM(D13:E13) -> 15,080 | D13: =G13+J13 -> 7,838 | E13: =H13+K13 -> 7,242 | F13: =SUM(G13:H13) -> 14,518 | G13: 7,371 | H13: 7,147 | I13: =SUM(J13:K13) -> 562 | J13: 467 | K13: 95
A14: 소라면 | B14: 7,392 | C14: =SUM(D14:E14) -> 18,158 | D14: =G14+J14 -> 9,220 | E14: =H14+K14 -> 8,938 | F14: =SUM(G14:H14) -> 18,041 | G14: 9,196 | H14: 8,845 | I14: =SUM(J14:K14) -> 117 | J14: 24 | K14: 93
A15: 율촌면 | B15: 3,336 | C15: 7,310 | D15: =G15+J15 -> 3,768 | E15: 3,542 | F15: 7,137 | G15: 3,645 | H15: 3,492 | I15: 173 | J15: 123 | K15: 50
A16: 화양면 | B16: 3,389 | C16: 7,293 | D16: 3,762 | E16: 3,531 | F16: 7,128 | G16: 3,643 | H16: 3,485 | I16: 165 | J16: 119 | K16: 46
A17: 남면 | B17: 1,772 | C17: 3,405 | D17: 1,733 | E17: 1,672 | F17: 3,342 | G17: 1,680 | H17: 1,662 | I17: 63 | J17: 53 | K17: 10
A18: 화정면 | B18: 1,318 | C18: 2,541 | D18: 1,247 | E18: 1,294 | F18: 2,494 | G18: 1,210 | H18: 1,284 | I18: 47 | J18: 37 | K18: 10
A19: 삼산면 | B19: 1,291 | C19: 2,552 | D19: 1,441 | E19: 1,111 | F19: 2,461 | G19: 1,360 | H19: 1,101 | I19: 91 | J19: 81 | K19: 10
A20: 동문동 | B20: 2,515 | C20: 5,022 | D20: 2,571 | E20: 2,451 | F20: 4,961 | G20: 2,532 | H20: 2,429 | I20: 61 | J20: 39 | K20: 22
A21: 한려동 | B21: 1,757 | C21: 3,560 | D21: 1,793 | E21: 1,767 | F21: 3,535 | G21: 1,780 | H21: 1,755 | I21: 25 | J21: 13 | K21: 12
A22: 중앙동 | B22: 2,619 | C22: 5,762 | D22: 2,884 | E22: 2,878 | F22: 5,672 | G22: 2,820 | H22: 2,852 | I22: 90 | J22: 64 | K22: 26
A23: 충무동 | B23: 2,372 | C23: 4,920 | D23: 2,548 | E23: 2,372 | F23: 4,880 | G23: 2,523 | H23: 2,357 | I23: 40 | J23: 25 | K23: 15
A24: 광림동 | B24: 3,391 | C24: 7,483 | D24: 3,862 | E24: 3,621 | F24: 7,430 | G24: 3,846 | H24: 3,584 | I24: 53 | J24: 16 | K24: 37
A25: 서강동 | B25: 1,993 | C25: 4,469 | D25: 2,254 | E25: 2,215 | F25: 4,440 | G25: 2,242 | H25: 2,198 | I25: 29 | J25: 12 | K25: 17
A26: 대교동 | B26: 3,323 | C26: 6,891 | D26: 3,636 | E26: 3,255 | F26: 6,630 | G26: 3,407 | H26: 3,223 | I26: 261 | J26: 229 | K26: 32
A27: 국동 | B27: 5,202 | C27: 12,923 | D27: 6,653 | E27: 6,270 | F27: 12,650 | G27: 6,431 | H27: 6,219 | I27: 273 | J27: 222 | K27: 51
A28: 월호동 | B28: 2,891 | C28: 8,244 | D28: 4,228 | E28: 4,016 | F28: 7,994 | G28: 3,994 | H28: 4,000 | I28: 250 | J28: 234 | K28: 16
A29: 여서동 | B29: 8,044 | C29: 22,473 | D29: 11,167 | E29: 11,306 | F29: 22,343 | G29: 11,103 | H29: 11,240 | I29: 130 | J29: 64 | K29: 66
A30: 문수동 | B30: 8,776 | C30: 23,097 | D30: 11,565 | E30: 11,532 | F30: 22,896 | G30: 11,463 | H30: 11,433 | I30: 201 | J30: 102 | K30: 99
A31: 미평동 | B31: 5,489 | C31: 13,479 | D31: 6,950 | E31: 6,529 | F31: 13,379 | G31: 6,913 | H31: 6,466 | I31: 100 | J31: 37 | K31: 63
A32: 둔덕동 | B32: 3,888 | C32: 11,295 | D32: 5,663 | E32: 5,632 | F32: 11,223 | G32: 5,633 | H32: 5,590 | I32: 72 | J32: 30 | K32: 42
A33: 만덕동 | B33: 3,598 | C33: 9,498 | D33: 4,771 | E33: 4,727 | F33: 9,354 | G33: 4,679 | H33: 4,675 | I33: 144 | J33: 92 | K33: 52
A34: 쌍봉동 | B34: 13,252 | C34: 36,935 | D34: 18,814 | E34: 18,121 | F34: 36,730 | G34: 18,725 | H34: 18,005 | I34: 205 | J34: 89 | K34: 116
A35: 시전동 | B35: 8,962 | C35: 25,943 | D35: 12,918 | E35: 13,025 | F35: 25,819 | G35: 12,877 | H35: 12,942 | I35: 124 | J35: 41 | K35: 83
A36: 여천동 | B36: 9,081 | C36: 23,485 | D36: 12,112 | E36: 11,373 | F36: 23,336 | G36: 12,043 | H36: 11,293 | I36: 149 | J36: 69 | K36: 80
A37: 주삼동 | B37: 2,856 | C37: 8,368 | D37: 4,268 | E37: 4,100 | F37: 8,326 | G37: 4,251 | H37: 4,075 | I37: 42 | J37: 17 | K37: 25
A38: 삼일동 | B38: 1,290 | C38: 3,083 | D38: 1,655 | E38: 1,428 | F38: 2,967 | G38: 1,556 | H38: 1,411 | I38: 116 | J38: 99 | K38: 17
A39: 묘도동 | B39: 572 | C39: 1,278 | D39: 670 | E39: 608 | F39: 1,271 | G39: 670 | H39: 601 | I39: 7 | J39: 0 | K39: 7
A40: 자료 : 민원지적과
A41: 주 : 1) 세대수에는 외국인 세대 제외

Sheet 65세이상 인구(총괄)
A1: 65세이상 인구 현황(총괄)
A2: 작성기준 : 2015.3.31. 현재 | D2: (단위 : 명)
A3: 구 분 | B3: 계 | C3: 남 | D3: 여 | E3: 노령화 지수
A4: 2010년말 | B4: 36,601 | C4: 14,376 | D4: 22,225 | E4: 76.5
A5: 2011년말 | B5: 37,830 | C5: 15,023 | D5: 22,807 | E5: 82.0
A6: 2012년말 | B6: 39,671 | C6: 15,929 | D6: 23,742 | E6: 89.4
A7: 2013년말 | B7: 41,369 | C7: 16,775 | D7: 24,594 | E7: 96.8
A8: 2014년말 | B8: 43,225 | C8: 17,752 | D8: 25,473 | E8: 105.4
A9: 2015. 1월 | B9: 43,476 | C9: 17,885 | D9: 25,591 | E9: 106.2
A10: 2015. 2월 | B10: 43,593 | C10: 17,958 | D10: 25,635 | E10: 107.2
A11: 2015. 3월 | B11: =SUM(C11:D11) -> 43,696 | C11: 18,034 | D11: 25,662 | E11: 107.9
A12: 자료 : 민원지적과
A13: 주 : 노령화 지수 = (65세이상인구 / 0~14세 인구) * 100
